{"text_format":"1","workbook":"xlsx","n_sheets":6,"sheets":["2","движение по прямым","vba","3","EXCEL2.RU","EXCEL2.RU (2)"],"not_rendered":{"charts":0,"images":2,"macros":1,"external_links":0,"defined_names":3,"comments":0,"pivot_tables":0},"unopened":[],"bounds":{"document_bytes":16777216,"sheet_cells":100000,"rows_first":2000,"rows_last":500,"rows_between":2000,"halvings":0,"cell_chars":16384,"cell_head_chars":4096},"cells_cut":0,"cells_raw":0,"read":"whole","date_system":"1900"}

{"sheet":"2","index":0,"n_rows":26,"n_cols":6,"rows_kept":26,"cut":false,"hidden":false,"merged":[]}
["Файл скачан с сайта excel2.ru >>>"]
["Перейти к статье >>>"]
["Условное форматирование в MS EXCEL. Цветовые шкалы"]
["Двухцветные шкалы"]
[]
[null,null,null,null,"шаг",{"$f":"255/(COUNTA(C9:C26)-1)","v":15}]
[]
[null,"Белый-Красный (встроенный)","Белый-Красный (пользовательский, действительно красный)",null,"код цвета (синий и зеленый)","HEX"]
[null,0,0,null,255,{"$f":"DEC2HEX(E9,2)","v":"FF"}]
[null,{"$f":"B9+1","v":1},{"$f":"C9+1","v":1},null,{"$f":"E9-$F$6","v":240},{"$f":"DEC2HEX(E10,2)","v":"F0"}]
[null,{"$f":"B10+1","v":2},{"$f":"C10+1","v":2},null,{"$f":"E10-$F$6","v":225},"E1"]
[null,3,{"$f":"C11+1","v":3},null,{"$f":"E11-$F$6","v":210},"D2"]
[null,4,{"$f":"C12+1","v":4},null,{"$f":"E12-$F$6","v":195},"C3"]
[null,5,5,null,{"$f":"E13-$F$6","v":180},"B4"]
[null,6,6,null,{"$f":"E14-$F$6","v":165},"A5"]
[null,7,7,null,{"$f":"E15-$F$6","v":150},"96"]
[null,8,8,null,{"$f":"E16-$F$6","v":135},"87"]
[null,9,9,null,{"$f":"E17-$F$6","v":120},"78"]
[null,10,10,null,{"$f":"E18-$F$6","v":105},"69"]
[null,11,11,null,{"$f":"E19-$F$6","v":90},"5A"]
[null,12,12,null,{"$f":"E20-$F$6","v":75},"4B"]
[null,13,13,null,{"$f":"E21-$F$6","v":60},"3C"]
[null,14,14,null,{"$f":"E22-$F$6","v":45},"2D"]
[null,15,15,null,{"$f":"E23-$F$6","v":30},"1E"]
[null,16,16,null,{"$f":"E24-$F$6","v":15},"0F"]
[null,17,17,null,{"$f":"E25-$F$6","v":0},"00"]

{"sheet":"движение по прямым","index":1,"n_rows":54,"n_cols":6,"rows_kept":54,"cut":false,"hidden":false,"merged":[]}
["Файл скачан с сайта excel2.ru >>>"]
["Перейти к статье >>>"]
["Условное форматирование в MS EXCEL. Цветовые шкалы"]
["Окрашивание фона ячейки по коду цвета (без VBA)"]
[]
[]
["1. Двигаемся по главной диагонали куба (оттенки серого: от черного к белому, увеличивая красный и соответственно увеличивая 2 остальных цвета)"]
[]
[null,"введите в С10 код цвета в десятичном формате",null,null,"HEX","r=g=b"]
[null,"r",120,null,{"$f":"DEC2HEX(C10,2)","v":"78"}]
[null,"g",{"$f":"C10","v":120},null,{"$f":"DEC2HEX(C11,2)","v":"78"}]
[null,"b",{"$f":"C11","v":120},null,"78"]
[]
[null,255,null,"Код цвета в шестнадцатеричном формате"]
[null,{"$f":"C10","v":120},null,{"$f":"CONCATENATE(E10,E11,E12)","v":"787878"}]
[null,0]
[]
[]
[]
["2. ребро куба (от красного к желтому, увеличивая зеленый, остальные цвета без изменений)"]
[]
[null,"введите в С24 код цвета в десятичном формате",null,null,"HEX"]
[null,"r",255,null,{"$f":"DEC2HEX(C23,2)","v":"FF"}]
[null,"g",200,null,{"$f":"DEC2HEX(C24,2)","v":"C8"}]
[null,"b",0,null,"00"]
[]
[null,0,null,"Код цвета в шестнадцатеричном формате"]
[null,{"$f":"C24","v":200},null,{"$f":"CONCATENATE(E23,E24,E25)","v":"FFC800"}]
[null,255]
[]
[]
["3. диагональ грани куба (от красного к зеленому, уменьшая красный и соответственно увеличивая зеленый)"]
[]
[null,"введите в С35 код цвета в десятичном формате",null,null,"HEX"]
[null,"r",150,null,{"$f":"DEC2HEX(C35,2)","v":"96"}]
[null,"g",{"$f":"255-C35","v":105},null,"69"]
[null,"b",0,null,"00"]
[]
[null,255,null,"Код цвета в шестнадцатеричном формате"]
[null,{"$f":"C35","v":150},null,{"$f":"CONCATENATE(E35,E36,E37)","v":"966900"}]
[null,0]
[]
[]
[]
["4. главная диагональ куба (от красного к голубому (Cyan), уменьшая красный и соответственно увеличивая зеленый и синий)"]
[]
[null,"введите в С36 код цвета в десятичном формате",null,null,"HEX"]
[null,"r",90,null,{"$f":"DEC2HEX(C48,2)","v":"5A"}]
[null,"g",{"$f":"255-C48","v":165},null,"A5"]
[null,"b",{"$f":"255-C48","v":165},null,"A5"]
[]
[null,255,null,"Код цвета в шестнадцатеричном формате"]
[null,{"$f":"C48","v":90},null,{"$f":"CONCATENATE(E48,E49,E50)","v":"5AA5A5"}]
[null,0]

{"sheet":"vba","index":2,"n_rows":20,"n_cols":13,"rows_kept":20,"cut":false,"hidden":false,"merged":[]}
["Файл скачан с сайта excel2.ru >>>"]
["Перейти к статье >>>"]
["Условное форматирование в MS EXCEL. Цветовые шкалы"]
["Окрашивание фона ячейки по коду цвета (с VBA, пользовательская функция)"]
[]
[]
[null,null,null,null,null,"В столбце F использована пользовательская функця myrgb(C8;D8;E8)"]
[null,null,null,null,null,"для просмотра модуля VBA нажмите alt+F11"]
[]
[null,null,"Заливка фона ячейки (цветовая модель rgb)",null,null,null,null,null,"Вершины куба rgb"]
[null,null,"Введите код цвета в диапазон C14:E14"]
[null,null,null,null,null,null,null,null,"r","g","b","цвет"]
[null,"формат","r","g","b","цвет",null,null,0,0,0,{"$f":"myrgb(I13,J13,K13)","v":""},"black"]
[null,"десятичный ",100,150,20,{"$f":"myrgb(C14,D14,E14)","v":""},null,null,0,0,255,{"$f":"myrgb(I14,J14,K14)","v":""},"blue"]
[null,"шестнадцатеричный",{"$f":"DEC2HEX(C14,2)","v":"64"},"96","14",null,null,null,0,255,0,{"$f":"myrgb(I15,J15,K15)","v":""},"green"]
[null,null,null,null,null,null,null,null,0,255,255,{"$f":"myrgb(I16,J16,K16)","v":""},"cyan"]
[null,null,"Проверяем соответствие цвета, заданному коду",null,null,null,null,null,255,0,0,{"$f":"myrgb(I17,J17,K17)","v":""},"red"]
[null,null,null,null,null,null,null,null,255,0,255,{"$f":"myrgb(I18,J18,K18)","v":""},"magenta"]
[null,null,null,null,null,null,null,null,255,255,0,"","yellow"]
[null,null,null,null,null,null,null,null,255,255,255,"","white"]

{"sheet":"3","index":3,"n_rows":18,"n_cols":5,"rows_kept":18,"cut":false,"hidden":false,"merged":[]}
["Файл скачан с сайта excel2.ru >>>"]
["Перейти к статье >>>"]
["Условное форматирование в MS EXCEL. Цветовые шкалы"]
["Трехцветные шкалы"]
[]
[]
[null,"Красный-Желтый-Зеленый (встроенный)","Красный-Желтый-Зеленый (пользовательский, действительно красный, желтый, зеленый)"]
[null,10,10,null,"красный"]
[null,{"$f":"B8-1","v":9},{"$f":"C8-1","v":9}]
[null,{"$f":"B9-1","v":8},{"$f":"C9-1","v":8}]
[null,7,7]
[null,6,6]
[null,5,5,null,"желтый"]
[null,4,4]
[null,3,3]
[null,2,2]
[null,1,1]
[null,0,0,null,"зеленый"]

{"sheet":"EXCEL2.RU","index":4,"n_rows":3,"n_cols":1,"rows_kept":3,"cut":false,"hidden":false,"merged":[[0,0,0,6]]}
["EXCEL2.RU - профессиональные приемы для всех >>>"]
["Хорошая новость! Большинство задач, которые Вы хотите решить с помощью MS EXCEL – уже давно решены! \nНа нашем сайте Вы найдете решения множества из наиболее часто встречающихся задач. Сайт содержит более 500 качественно оформленных статей с файлами примеров."]
["Миссия нашего сайта - превратить Вашу работу в MS EXCEL в приятное времяпрепровождение и ускорить решение Ваших задач. Мы постоянно работаем над содержанием и оформлением нашего сайта и благодарим активных пользователей за поддержку и неоценимую помощь в нашей работе."]

{"sheet":"EXCEL2.RU (2)","index":5,"n_rows":3,"n_cols":1,"rows_kept":3,"cut":false,"hidden":true,"merged":[[0,0,0,6]]}
["EXCEL2.RU - профессиональные приемы для всех >>>"]
["Хорошая новость! Большинство задач, которые Вы хотите решить с помощью MS EXCEL – уже давно решены! \nНа нашем сайте Вы найдете решения множества из наиболее часто встречающихся задач. Сайт содержит более 500 качественно оформленных статей с файлами примеров."]
["Миссия нашего сайта - превратить Вашу работу в MS EXCEL в приятное времяпрепровождение и ускорить решение Ваших задач. Мы постоянно работаем над содержанием и оформлением нашего сайта и благодарим активных пользователей за поддержку и неоценимую помощь в нашей работе."]